[Event "Nakhchivan Open 2024"]
[Site "Nakhchivan"]
[Date "2024.01.15"]
[Round "9.5"]
[White "Mamedjarova, Zeinab"]
[Black "Aliyev, Aykhan"]
[Result "1/2-1/2"]
[ECO "D30"]
[WhiteElo "2173"]
[BlackElo "1962"]
[Annotator "RC"]
[PlyCount "166"]
[EventDate "2024.01.11"]
[EventType "swiss"]
[EventCountry "AZE"]
[SourceTitle "playchess.com"]
[Source "ChessBase"]
[SourceQuality "1"]
[TimeControl "5400+30"]

1. d4 {[%emt 0:00:54]} d5 {[%emt 0:01:03]} 2. c4 {[%emt 0:00:14]} e6 {[%emt 0:00:09]} 3. Nf3 {[%emt 0:00:25]} Nf6 {[%emt 0:00:08]} 4. e3 {[%emt 0:00:25]} Be7 {[%emt 0:00:22]} 5. Nbd2 {[%emt 0:00:21]} O-O {[%emt 0:00:22]} 6. Be2 {[%emt 0:00:20]} b6 {[%emt 0:00:26]} 7. cxd5 {[%emt 0:00:19]} exd5 {[%emt 0:01:24]} 8. O-O {[%emt 0:00:09]} Bb7 {[%emt 0:00:42]} 9. b3 {[%emt 0:00:04]} Nbd7 {[%emt 0:00:16]} 10. Bb2 {[%emt 0:00:05]} Ne4 {[%emt 0:01:32]} 11. Nxe4 {[%emt 0:01:17]} dxe4 {[%emt 0:00:35]} 12. Nd2 {[%emt 0:00:01]} c5 {[%emt 0:14:17]} 13. Qb1 {[%emt 0:02:27]} cxd4 {[%emt 0:07:04]} 14. Bxd4 {[%emt 0:00:38]} Nf6 {[%emt 0:00:13]} 15. Rd1 {[%emt 0:00:26]} Qd5 {[%emt 0:08:53]} 16. Qb2 {[%emt 0:07:44]} Qf5 {[%emt 0:02:44]} 17. Nf1 {[%emt 0:02:21]} Rfd8 {[%emt 0:21:52]} 18. Rac1 {[%emt 0:01:57]} Rac8 {[%emt 0:02:12]} 19. h3 {[%emt 0:00:08]} Qa5 {[%emt 0:00:48]} 20. Qa1 {[%emt 0:06:32]} Ne8 {[%emt 0:08:19]} 21. Rxc8 {[%emt 0:05:20]} Bxc8 {[%emt 0:00:22]} 22. Ng3 Bb7 {[%emt 0:09:23]} 23. Bc4 {[%emt 0:02:32]} h5 {[%emt 0:05:02]} 24. Bc3 {[%emt 0:04:38]} Qg5 {[%emt 0:04:54]} 25. h4 {[%emt 0:03:36]} Qxh4 {[%emt 0:01:47]} 26. Rxd8 {[%emt 0:02:05]} Bxd8 {[%emt 0:00:17]} 27. Qd1 {[%emt 0:00:02]} Bc6 {[%emt 0:02:35]} 28. Bd5 {[%emt 0:11:17]} Bxd5 {[%emt 0:05:06]} 29. Qxd5 {[%emt 0:00:06]} Qg5 {[%emt 0:00:39]} 30. Qxe4 {[%emt 0:06:51]} Nc7 {[%emt 0:01:17]} 31. Qf3 {[%emt 0:09:38]} h4 {[%emt 0:00:31]} 32. Ne4 {[%emt 0:00:31]} Qg6 {[%emt 0:00:23]} 33. Be5 {[%emt 0:01:18]} Ne6 {[%emt 0:00:33]} 34. Nd6 {[%emt 0:00:16]} Bc7 {[%emt 0:00:42]} 35. Nf5 {[%emt 0:05:46]} Bd8 {[%emt 0:00:21]} 36. Bb8 {[%emt 0:00:12]} Qf6 {[%emt 0:00:32]} 37. Qd5 {[%emt 0:04:46]} Qa1+ {[%emt 0:00:23]} 38. Kh2 {[%emt 0:00:01]} Bf6 {[%emt 0:00:45]} 39. a4 {[%emt 0:06:53]} Qb1 {[%emt 0:00:17]} 40. Bd6 {[%emt 0:01:02]} Qc2 {[%emt 0:00:35]} 41. Qa8+ {[%emt 0:03:56]} Kh7 {[%emt 0:00:10]} 42. Qf3 {[%emt 0:00:08]} Qxb3 {[%emt 0:00:52]} 43. Qe4 {[%emt 0:04:35]} g6 {[%emt 0:00:34]} 44. Nxh4 {[%emt 0:00:56]} Qd1 {[%emt 0:00:25]} 45. Bb8 {[%emt 0:03:19]} Qh5 {[%emt 0:00:05]} 46. g3 {[%emt 0:01:02]} Nc5 {[%emt 0:01:04]} 47. Qc4 {[%emt 0:00:08]} Kg7 {[%emt 0:00:12]} 48. Kg2 {[%emt 0:00:44]} a5 {[%emt 0:00:45]} 49. Nf3 {[%emt 0:00:38]} Qf5 {[%emt 0:00:21]} 50. Bc7 {[%emt 0:00:26]} Nd7 {[%emt 0:00:39]} 51. Bd6 {[%emt 0:03:58]} Qe6 {[%emt 0:00:33]} 52. Qxe6 {[%emt 0:00:42]} fxe6 {[%emt 0:00:02]} 53. Nd2 {[%emt 0:00:34]} e5 {[%emt 0:00:34]} 54. Nc4 {[%emt 0:00:17]} Kf7 {[%emt 0:00:44]} 55. Bc7 {[%emt 0:00:55]} Ke6 {[%emt 0:00:28]} 56. Kf3 {[%emt 0:01:15]} Bg7 {[%emt 0:00:39]} 57. e4 {[%emt 0:00:24]} Bf8 {[%emt 0:00:24]} 58. Bxb6 {[%emt 0:00:21]} Bb4 {[%emt 0:00:39]} 59. Bxa5 {[%emt 0:01:28]} Bxa5 {[%emt 0:00:13]} 60. Nxa5 {[%emt 0:00:04]} Nb6 {[%emt 0:00:17]} 61. Kg4 {[%emt 0:00:27]} Kf6 {[%emt 0:00:28]} 62. Nc6 {[%emt 0:00:55]} Nxa4 {[%emt 0:00:04]} 63. Nb4 {[%emt 0:00:39]} Nc5 {[%emt 0:00:23]} 64. f3 {[%emt 0:00:10]} Ne6 {[%emt 0:00:15]} 65. Nd5+ {[%emt 0:00:39]} Kf7 {[%emt 0:00:19]} 66. Nb6 {[%emt 0:00:15]} Nd4 {[%emt 0:00:13]} 67. Nc4 {[%emt 0:00:47]} Kf6 {[%emt 0:00:09]} 68. f4 {[%emt 0:00:07]} exf4 {[%emt 0:00:08]} 69. gxf4 {[%emt 0:00:21]} Ne6 {[%emt 0:00:42]} 70. Ne3 {[%emt 0:00:16]} Nc5 {[%emt 0:00:32]} 71. Nd5+ {[%emt 0:01:07]} Ke6 {[%emt 0:00:48]} 72. Nc3 {[%emt 0:00:03]} Kf6 {[%emt 0:00:14]} 73. Kf3 {[%emt 0:00:36]} Kf7 {[%emt 0:01:08]} 74. Ke3 {[%emt 0:00:12]} Kf6 {[%emt 0:00:47]} 75. e5+ {[%emt 0:01:12]} Ke6 {[%emt 0:00:52]} 76. Ne4 {[%emt 0:00:15]} Na6 {[%emt 0:00:49]} 77. Kd4 {[%emt 0:00:16]} Nc7 {[%emt 0:00:46]} 78. Kc5 {[%emt 0:01:06]} Ne8 {[%emt 0:00:46]} 79. Kc6 {[%emt 0:00:17]} Ng7 {[%emt 0:00:22]} 80. Ng5+ {[%emt 0:00:30]} Kf5 {[%emt 0:00:38]} 81. Kd7 {[%emt 0:00:50]} Kxf4 {[%emt 0:00:19]} 82. Nf7 {[%emt 0:00:27]} g5 {[%emt 0:00:11]} 83. Nxg5 {[%emt 0:00:14]} Kxe5 {[%emt 0:00:08]} 1/2-1/2

[Event "Nakhchivan Open 2024"]
[Site "Nakhchivan"]
[Date "2024.01.15"]
[Round "9.6"]
[White "Kazimov, Anvar"]
[Black "Garayev, Sadig"]
[Result "0-1"]
[ECO "A41"]
[WhiteElo "1434"]
[BlackElo "2008"]
[Annotator "RC"]
[PlyCount "72"]
[EventDate "2024.01.11"]
[EventType "swiss"]
[EventCountry "AZE"]
[SourceTitle "playchess.com"]
[Source "ChessBase"]
[SourceQuality "1"]
[TimeControl "5400+30"]

1. d4 {[%emt 0:00:03]} d6 {[%emt 0:01:23]} 2. c4 {[%emt 0:00:09]} e5 {[%emt 0:00:09]} 3. dxe5 {[%emt 0:00:22]} dxe5 {[%emt 0:00:06]} 4. Qxd8+ Kxd8 5. Nc3 {[%emt 0:00:51]} c6 {[%emt 0:00:43]} 6. Nf3 {[%emt 0:00:18]} f6 {[%emt 0:00:08]} 7. Bd2 {[%emt 0:00:41]} Be6 {[%emt 0:00:09]} 8. e4 {[%emt 0:00:42]} Nd7 {[%emt 0:00:28]} 9. Be3 {[%emt 0:02:41]} Kc7 {[%emt 0:00:40]} 10. Be2 {[%emt 0:01:12]} a5 {[%emt 0:00:27]} 11. a3 {[%emt 0:01:46]} Ne7 {[%emt 0:00:43]} 12. Rd1 {[%emt 0:02:02]} Nc8 {[%emt 0:00:27]} 13. h3 {[%emt 0:01:56]} Ncb6 {[%emt 0:02:54]} 14. Nd2 {[%emt 0:03:11]} a4 {[%emt 0:01:04]} 15. f4 {[%emt 0:14:45]} Bd6 {[%emt 0:02:32]} 16. f5 {[%emt 0:02:36]} Bf7 {[%emt 0:00:15]} 17. Rc1 {[%emt 0:08:03]} Bc5 {[%emt 0:00:35]} 18. Bxc5 {[%emt 0:00:46]} Nxc5 {[%emt 0:00:03]} 19. O-O {[%emt 0:02:15]} Rhd8 {[%emt 0:00:33]} 20. Rfd1 {[%emt 0:02:38]} Rxd2 {[%emt 0:02:55]} 21. Rxd2 {[%emt 0:00:13]} Nb3 {[%emt 0:00:06]} 22. Rdd1 {[%emt 0:02:04]} Nxc1 {[%emt 0:00:08]} 23. Rxc1 {[%emt 0:00:03]} Bxc4 {[%emt 0:00:26]} 24. Bxc4 {[%emt 0:03:22]} Nxc4 {[%emt 0:00:02]} 25. Rc2 {[%emt 0:01:07]} b5 {[%emt 0:03:10]} 26. Kf2 {[%emt 0:00:51]} Kd7 {[%emt 0:04:23]} 27. g4 {[%emt 0:02:38]} Na5 {[%emt 0:03:51]} 28. h4 {[%emt 0:02:00]} Nb3 {[%emt 0:00:23]} 29. Ke3 {[%emt 0:00:43]} Ke7 {[%emt 0:03:26]} 30. Rg2 {[%emt 0:01:39]} Rd8 {[%emt 0:00:39]} 31. g5 {[%emt 0:03:33]} Kf7 {[%emt 0:00:14]} 32. Na2 {[%emt 0:00:29]} Rd1 {[%emt 0:03:02]} 33. Nb4 {[%emt 0:03:36]} Nd4 {[%emt 0:00:32]} 34. Nd3 {[%emt 0:02:48]} Rh1 {[%emt 0:00:21]} 35. Rg4 {[%emt 0:01:28]} Rh3+ {[%emt 0:07:37]} 36. Kf2 {[%emt 0:00:43]} Rxd3 {[%emt 0:00:18]} 0-1